[Event "Early-Titled-Tuesday-Blitz-June-18-2024"]
[Site "Chess.com"]
[Date "2024.06.18"]
[Round "6"]
[White "NikitaShnadrygin"]
[Black "AttilaTurzo"]
[Result "0-1"]
[WhiteElo "2732"]
[BlackElo "2443"]
[TimeControl "180+1"]
[EndTime "9:10:19 PDT"]
[Termination "AttilaTurzo won on time"]

1. e4 {[%clk 0:03:00.9]} 1... e5 {[%clk 0:02:59.7]} 2. Nc3 {[%clk 0:02:59.8]}
2... Nf6 {[%clk 0:02:59]} 3. f4 {[%clk 0:03:00]} 3... d5 {[%clk 0:02:59.2]} 4.
fxe5 {[%clk 0:03:00.1]} 4... Nxe4 {[%clk 0:02:58.8]} 5. Qf3 {[%clk 0:03:00.6]}
5... Nxc3 {[%clk 0:02:48.4]} 6. bxc3 {[%clk 0:03:01.5]} 6... c5 {[%clk
0:02:46.1]} 7. Qg3 {[%clk 0:03:00.9]} 7... Nc6 {[%clk 0:02:43.9]} 8. Nf3 {[%clk
0:03:00.6]} 8... d4 {[%clk 0:02:41.6]} 9. Bc4 {[%clk 0:02:37.2]} 9... Be6 {[%clk
0:02:33.6]} 10. Bxe6 {[%clk 0:02:36.8]} 10... fxe6 {[%clk 0:02:33.3]} 11. O-O
{[%clk 0:02:31.5]} 11... Qd7 {[%clk 0:02:29.6]} 12. c4 {[%clk 0:02:13.9]} 12...
O-O-O {[%clk 0:02:10.3]} 13. d3 {[%clk 0:02:14]} 13... h6 {[%clk 0:01:58.8]} 14.
Qg6 {[%clk 0:01:51.6]} 14... Qe8 {[%clk 0:01:57.7]} 15. Qe4 {[%clk 0:01:49.7]}
15... g5 {[%clk 0:01:55.2]} 16. Rb1 {[%clk 0:01:48.4]} 16... Rg8 {[%clk
0:01:27.7]} 17. g4 {[%clk 0:01:40.4]} 17... Qg6 {[%clk 0:01:23.7]} 18. Qe2
{[%clk 0:01:27.1]} 18... h5 {[%clk 0:01:19.5]} 19. h3 {[%clk 0:01:27.6]} 19...
Be7 {[%clk 0:01:15.6]} 20. Kg2 {[%clk 0:01:26.9]} 20... hxg4 {[%clk 0:01:14.7]}
21. hxg4 {[%clk 0:01:26.9]} 21... Rh8 {[%clk 0:01:15.1]} 22. Bd2 {[%clk
0:01:26.2]} 22... Rh7 {[%clk 0:01:10.8]} 23. Rh1 {[%clk 0:01:26.1]} 23... Rdh8
{[%clk 0:01:10.7]} 24. Qf2 {[%clk 0:01:10.7]} 24... Rh6 {[%clk 0:00:55.6]} 25.
Qg3 {[%clk 0:01:06]} 25... Qh7 {[%clk 0:00:53.2]} 26. Rxh6 {[%clk 0:01:05.7]}
26... Qxh6 {[%clk 0:00:54.1]} 27. Kf2 {[%clk 0:00:58]} 27... Kc7 {[%clk
0:00:42.1]} 28. Rg1 {[%clk 0:00:53.7]} 28... b6 {[%clk 0:00:38.8]} 29. Ke2
{[%clk 0:00:48.6]} 29... Qg7 {[%clk 0:00:33.6]} 30. Kf2 {[%clk 0:00:28.1]} 30...
Kb7 {[%clk 0:00:31.2]} 31. Kg2 {[%clk 0:00:28.1]} 31... a6 {[%clk 0:00:28.2]}
32. Rh1 {[%clk 0:00:27.6]} 32... Rxh1 {[%clk 0:00:26.6]} 33. Kxh1 {[%clk
0:00:28.5]} 33... b5 {[%clk 0:00:24.4]} 34. cxb5 {[%clk 0:00:29.4]} 34... axb5
{[%clk 0:00:25.3]} 35. Kg2 {[%clk 0:00:29.8]} 35... Bd8 {[%clk 0:00:21.6]} 36.
Qh2 {[%clk 0:00:27.6]} 36... Bc7 {[%clk 0:00:21.3]} 37. Nxg5 {[%clk 0:00:22.2]}
37... Bxe5 {[%clk 0:00:17.4]} 38. Qh5 {[%clk 0:00:18.8]} 38... Qf6 {[%clk
0:00:14.7]} 39. Ne4 {[%clk 0:00:18]} 39... Qe7 {[%clk 0:00:12.9]} 40. g5 {[%clk
0:00:16.5]} 40... c4 {[%clk 0:00:13]} 41. g6 {[%clk 0:00:16.2]} 41... cxd3
{[%clk 0:00:11.5]} 42. cxd3 {[%clk 0:00:15]} 42... Bg7 {[%clk 0:00:11.7]} 43.
Qh7 {[%clk 0:00:12.4]} 43... Kb6 {[%clk 0:00:11]} 44. Bg5 {[%clk 0:00:12.4]}
44... Qf8 {[%clk 0:00:10.3]} 45. Qh3 {[%clk 0:00:08.6]} 45... Qe8 {[%clk
0:00:08.7]} 46. Qh7 {[%clk 0:00:07.7]} 46... Qf8 {[%clk 0:00:08.6]} 47. Ng3
{[%clk 0:00:07.6]} 47... Ne5 {[%clk 0:00:08.5]} 48. Qh4 {[%clk 0:00:04.8]} 48...
Kc5 {[%clk 0:00:06.8]} 49. Ne4+ {[%clk 0:00:03.6]} 49... Kd5 {[%clk 0:00:06.4]}
50. Nf2 {[%clk 0:00:03.9]} 50... Qf5 {[%clk 0:00:04.3]} 51. Qe4+ {[%clk
0:00:02.3]} 51... Qxe4+ {[%clk 0:00:04.4]} 52. dxe4+ {[%clk 0:00:03.2]} 52...
Kc4 {[%clk 0:00:04.8]} 53. Bf4 {[%clk 0:00:03.8]} 53... Nxg6 {[%clk 0:00:04.8]}
54. Bc7 {[%clk 0:00:03.2]} 54... d3 {[%clk 0:00:04.2]} 55. Kf3 {[%clk
0:00:03.3]} 55... Ne5+ {[%clk 0:00:03.7]} 56. Bxe5 {[%clk 0:00:03.6]} 56... Bxe5
{[%clk 0:00:03.6]} 57. Nd1 {[%clk 0:00:04.5]} 57... Bd4 {[%clk 0:00:03.6]} 58.
Kf4 {[%clk 0:00:03.8]} 58... e5+ {[%clk 0:00:03.8]} 59. Kf5 {[%clk 0:00:04.2]}
59... d2 {[%clk 0:00:03.7]} 60. Kg4 {[%clk 0:00:04.9]} 60... Kd3 {[%clk
0:00:04]} 61. Kf3 {[%clk 0:00:05.8]} 61... b4 {[%clk 0:00:03.7]} 0-1

[Event "Early-Titled-Tuesday-Blitz-June-18-2024"]
[Site "Chess.com"]
[Date "2024.06.18"]
[Round "6"]
[White "GlavkonVVS"]
[Black "TimurDushatov"]
[Result "0-1"]
[WhiteElo "2522"]
[BlackElo "2377"]
[TimeControl "180+1"]
[EndTime "9:10:19 PDT"]
[Termination "TimurDushatov won by resignation"]

1. c4 {[%clk 0:03:00.9]} 1... Nf6 {[%clk 0:02:57.6]} 2. Nc3 {[%clk 0:03:00.9]}
2... e6 {[%clk 0:02:53.6]} 3. d4 {[%clk 0:03:01.1]} 3... d5 {[%clk 0:02:51]} 4.
Nf3 {[%clk 0:03:01.2]} 4... dxc4 {[%clk 0:02:48.4]} 5. Bg5 {[%clk 0:03:00.1]}
5... a6 {[%clk 0:02:47.6]} 6. a4 {[%clk 0:02:59.4]} 6... Be7 {[%clk 0:02:22.7]}
7. e3 {[%clk 0:02:59.2]} 7... O-O {[%clk 0:02:22]} 8. Bxc4 {[%clk 0:02:59.1]}
8... b6 {[%clk 0:02:20.9]} 9. O-O {[%clk 0:02:57.5]} 9... Bb7 {[%clk 0:02:20.9]}
10. Qe2 {[%clk 0:02:54.3]} 10... Nbd7 {[%clk 0:02:18.6]} 11. Rfd1 {[%clk
0:02:54.1]} 11... Nh5 {[%clk 0:01:47]} 12. Bxe7 {[%clk 0:02:40.5]} 12... Qxe7
{[%clk 0:01:46.4]} 13. Ne5 {[%clk 0:02:38.6]} 13... Nhf6 {[%clk 0:01:45.7]} 14.
f4 {[%clk 0:02:37.6]} 14... c5 {[%clk 0:01:42.3]} 15. Rd2 {[%clk 0:02:10]} 15...
cxd4 {[%clk 0:01:40.2]} 16. exd4 {[%clk 0:02:09.9]} 16... Rfc8 {[%clk 0:01:19]}
17. Kh1 {[%clk 0:01:58.7]} 17... Qb4 {[%clk 0:00:54]} 18. Ba2 {[%clk 0:01:33.4]}
18... Qd6 {[%clk 0:00:40.6]} 19. Re1 {[%clk 0:01:28.1]} 19... Nd5 {[%clk
0:00:30.3]} 20. Nxd5 {[%clk 0:01:19]} 20... Bxd5 {[%clk 0:00:26.2]} 21. Bb1
{[%clk 0:01:18.1]} 21... Nf6 {[%clk 0:00:20.2]} 22. f5 {[%clk 0:01:16.1]} 22...
exf5 {[%clk 0:00:18.3]} 23. Bxf5 {[%clk 0:01:15.9]} 23... Re8 {[%clk 0:00:18.3]}
24. Qf2 {[%clk 0:01:14.2]} 24... Qb4 {[%clk 0:00:17.5]} 25. Bc2 {[%clk
0:01:04.4]} 25... Rac8 {[%clk 0:00:15.1]} 26. h3 {[%clk 0:01:02.5]} 26... Qd6
{[%clk 0:00:08.6]} 27. Rde2 {[%clk 0:01:00]} 27... b5 {[%clk 0:00:05.3]} 28.
axb5 {[%clk 0:00:59.3]} 28... axb5 {[%clk 0:00:05.5]} 29. Bd3 {[%clk 0:00:59.8]}
29... b4 {[%clk 0:00:05]} 30. Bf5 {[%clk 0:00:50.8]} 30... Be6 {[%clk
0:00:04.9]} 31. Bb1 {[%clk 0:00:48.4]} 31... Bd5 {[%clk 0:00:04.8]} 32. Kg1
{[%clk 0:00:47]} 32... Be6 {[%clk 0:00:04.2]} 33. g4 {[%clk 0:00:45.4]} 33...
Rcd8 {[%clk 0:00:04.4]} 34. g5 {[%clk 0:00:44.4]} 34... Nd7 {[%clk 0:00:03.5]}
35. Nf3 {[%clk 0:00:40.2]} 35... g6 {[%clk 0:00:03.6]} 36. h4 {[%clk 0:00:40.1]}
36... Nf8 {[%clk 0:00:03.6]} 37. Re5 {[%clk 0:00:38]} 37... Bd5 {[%clk
0:00:03.5]} 38. Be4 {[%clk 0:00:36.2]} 38... Bxe4 {[%clk 0:00:03.2]} 39. R1xe4
{[%clk 0:00:36.3]} 39... Rxe5 {[%clk 0:00:03.7]} 40. Nxe5 {[%clk 0:00:34.1]}
40... Qd5 {[%clk 0:00:03.4]} 41. Rf4 {[%clk 0:00:33.3]} 41... Ne6 {[%clk
0:00:03.7]} 42. Rxf7 {[%clk 0:00:33.1]} 42... Qxd4 {[%clk 0:00:03.8]} 43. Qxd4
{[%clk 0:00:28.8]} 43... Rxd4 {[%clk 0:00:03.9]} 44. Re7 {[%clk 0:00:28.9]}
44... Nf4 {[%clk 0:00:03.9]} 45. Nd7 {[%clk 0:00:26.7]} 45... Rd2 {[%clk
0:00:03]} 46. Nf6+ {[%clk 0:00:25.9]} 46... Kf8 {[%clk 0:00:03.4]} 47. Rxh7
{[%clk 0:00:26]} 47... Rxb2 {[%clk 0:00:01.9]} 48. Nd7+ {[%clk 0:00:24.8]} 48...
Ke8 {[%clk 0:00:02.3]} 49. Nf6+ {[%clk 0:00:24.9]} 49... Kd8 {[%clk 0:00:02.8]}
50. Rb7 {[%clk 0:00:23.7]} 50... b3 {[%clk 0:00:02.3]} 51. Ne4 {[%clk
0:00:22.2]} 51... Re2 {[%clk 0:00:01.6]} 52. Nc5 {[%clk 0:00:21.7]} 52... b2
{[%clk 0:00:02.1]} 53. Kf1 {[%clk 0:00:21.7]} 53... Rc2 {[%clk 0:00:01.9]} 54.
Ne4 {[%clk 0:00:17.5]} 54... Rc1+ {[%clk 0:00:02.4]} 55. Kf2 {[%clk 0:00:17.2]}
55... b1=Q {[%clk 0:00:03.3]} 56. Rxb1 {[%clk 0:00:17.4]} 56... Rxb1 {[%clk
0:00:04.2]} 57. Ke3 {[%clk 0:00:17.7]} 57... Nh5 {[%clk 0:00:05.1]} 58. Kd4
{[%clk 0:00:16.8]} 58... Ke7 {[%clk 0:00:04.9]} 59. Ke5 {[%clk 0:00:16.9]} 59...
Re1 {[%clk 0:00:05]} 60. Kd5 {[%clk 0:00:16.6]} 60... Rxe4 {[%clk 0:00:05.1]}
61. Kxe4 {[%clk 0:00:16.7]} 61... Ke6 {[%clk 0:00:06]} 62. Kf3 {[%clk
0:00:16.7]} 62... Kf5 {[%clk 0:00:06.9]} 63. Kg2 {[%clk 0:00:17.1]} 63... Kg4
{[%clk 0:00:07.6]} 64. Kh2 {[%clk 0:00:17.4]} 64... Kxh4 {[%clk 0:00:08.5]} 0-1

[Event "Early-Titled-Tuesday-Blitz-June-18-2024"]
[Site "Chess.com"]
[Date "2024.06.18"]
[Round "6"]
[White "Defend1r"]
[Black "HamedWafa4"]
[Result "0-1"]
[WhiteElo "2544"]
[BlackElo "2681"]
[TimeControl "180+1"]
[EndTime "9:10:20 PDT"]
[Termination "HamedWafa4 won by resignation"]

1. e4 {[%clk 0:02:53.7]} 1... e5 {[%clk 0:02:59.1]} 2. Nf3 {[%clk 0:02:53.1]}
2... Nc6 {[%clk 0:02:59.2]} 3. Bc4 {[%clk 0:02:52.6]} 3... Bc5 {[%clk
0:02:59.1]} 4. c3 {[%clk 0:02:52.1]} 4... Nf6 {[%clk 0:02:59.5]} 5. d4 {[%clk
0:02:52.1]} 5... exd4 {[%clk 0:02:59.7]} 6. e5 {[%clk 0:02:52.4]} 6... d5 {[%clk
0:02:59.8]} 7. Bb5 {[%clk 0:02:52.3]} 7... Ne4 {[%clk 0:03:00.5]} 8. cxd4 {[%clk
0:02:51.8]} 8... Bb6 {[%clk 0:03:01.1]} 9. Nc3 {[%clk 0:02:52]} 9... O-O {[%clk
0:03:01.2]} 10. Be3 {[%clk 0:02:51.8]} 10... Bg4 {[%clk 0:03:01.5]} 11. h3
{[%clk 0:02:52]} 11... Bh5 {[%clk 0:03:01.9]} 12. Qc2 {[%clk 0:02:52]} 12... Bg6
{[%clk 0:03:02.6]} 13. Qb3 {[%clk 0:02:52.3]} 13... Na5 {[%clk 0:03:03.4]} 14.
Qxd5 {[%clk 0:02:39.8]} 14... Qe7 {[%clk 0:03:03.4]} 15. Qd7 {[%clk 0:02:13.7]}
15... Qb4 {[%clk 0:03:02.2]} 16. O-O {[%clk 0:01:51.4]} 16... Rad8 {[%clk
0:02:53.1]} 17. Nd5 {[%clk 0:01:51.1]} 17... Qxb2 {[%clk 0:02:45.5]} 18. Ne7+
{[%clk 0:01:46.5]} 18... Kh8 {[%clk 0:02:45.8]} 19. Nxg6+ {[%clk 0:01:45.7]}
19... fxg6 {[%clk 0:02:46.7]} 20. Qg4 {[%clk 0:01:45.5]} 20... Qxb5 {[%clk
0:02:21.5]} 21. Qxe4 {[%clk 0:01:43.3]} 21... Qd5 {[%clk 0:02:21.6]} 22. Qh4
{[%clk 0:01:39.7]} 22... Nc4 {[%clk 0:02:16.6]} 23. Rad1 {[%clk 0:01:17.8]}
23... Kg8 {[%clk 0:02:01.2]} 24. Qg4 {[%clk 0:01:06.6]} 24... Rde8 {[%clk
0:01:37.6]} 25. Ng5 {[%clk 0:01:04.9]} 25... h6 {[%clk 0:01:30.6]} 26. Ne4
{[%clk 0:00:38]} 26... c6 {[%clk 0:01:03]} 27. Qxg6 {[%clk 0:00:24.5]} 27... Re6
{[%clk 0:00:50.1]} 28. Nf6+ {[%clk 0:00:17.2]} 28... Rexf6 {[%clk 0:00:50.6]}
29. exf6 {[%clk 0:00:17.3]} 29... Rxf6 {[%clk 0:00:51.5]} 30. Qg3 {[%clk
0:00:16.6]} 30... Qf7 {[%clk 0:00:52.1]} 31. Rfe1 {[%clk 0:00:15]} 31... Bc7
{[%clk 0:00:51.8]} 32. Qh4 {[%clk 0:00:14.4]} 32... Rg6 {[%clk 0:00:48.5]} 33.
Qe4 {[%clk 0:00:13.9]} 33... Nd6 {[%clk 0:00:46.7]} 34. Qf4 {[%clk 0:00:12.1]}
34... Nf5 {[%clk 0:00:46.6]} 35. Qf3 {[%clk 0:00:10.1]} 35... Qd7 {[%clk
0:00:41.9]} 36. g4 {[%clk 0:00:10]} 36... Nh4 {[%clk 0:00:40.7]} 37. Qe4 {[%clk
0:00:10.2]} 37... Rf6 {[%clk 0:00:38.3]} 38. Re2 {[%clk 0:00:08.6]} 38... Re6
{[%clk 0:00:34]} 39. Qd3 {[%clk 0:00:05.8]} 39... Qd6 {[%clk 0:00:32.2]} 40. f4
{[%clk 0:00:05.6]} 40... Nf3+ {[%clk 0:00:29.4]} 41. Kf2 {[%clk 0:00:04.3]}
41... Nh4 {[%clk 0:00:28.4]} 42. d5 {[%clk 0:00:04.5]} 42... Rxe3 {[%clk
0:00:21.8]} 43. Rxe3 {[%clk 0:00:04.7]} 43... Qxf4+ {[%clk 0:00:22.2]} 44. Kg1
{[%clk 0:00:04.2]} 44... Qh2+ {[%clk 0:00:21.9]} 45. Kf1 {[%clk 0:00:04]} 45...
Qg2+ {[%clk 0:00:20.2]} 46. Ke1 {[%clk 0:00:04.5]} 46... Ba5+ {[%clk 0:00:20]}
47. Rd2 {[%clk 0:00:04.8]} 47... Qg1+ {[%clk 0:00:19.6]} 48. Ke2 {[%clk
0:00:04.3]} 48... Bxd2 {[%clk 0:00:19.3]} 49. Kxd2 {[%clk 0:00:04]} 49... Qg2+
{[%clk 0:00:18.1]} 50. Re2 {[%clk 0:00:04]} 50... Nf3+ {[%clk 0:00:18]} 51. Kd1
{[%clk 0:00:01.1]} 51... Qf1+ {[%clk 0:00:18.2]} 52. Kc2 {[%clk 0:00:01.4]}
52... Qxe2+ {[%clk 0:00:16]} 53. Qxe2 {[%clk 0:00:01.5]} 53... Nd4+ {[%clk
0:00:16.7]} 54. Kd3 {[%clk 0:00:02]} 54... Nxe2 {[%clk 0:00:17.6]} 55. dxc6
{[%clk 0:00:01.4]} 55... bxc6 {[%clk 0:00:17.9]} 56. Kxe2 {[%clk 0:00:02]} 56...
Kf7 {[%clk 0:00:18.8]} 57. Kd3 {[%clk 0:00:02.9]} 57... Ke6 {[%clk 0:00:19.6]}
58. Ke4 {[%clk 0:00:03.6]} 58... Kd6 {[%clk 0:00:19.6]} 59. Kd4 {[%clk
0:00:03.5]} 59... c5+ {[%clk 0:00:20]} 60. Kc4 {[%clk 0:00:04]} 60... Kc6 {[%clk
0:00:20.7]} 61. h4 {[%clk 0:00:04.5]} 61... g6 {[%clk 0:00:20.6]} 62. a3 {[%clk
0:00:03.1]} 62... a6 {[%clk 0:00:20.7]} 63. a4 {[%clk 0:00:02.8]} 63... a5
{[%clk 0:00:21.4]} 64. g5 {[%clk 0:00:01.3]} 64... h5 {[%clk 0:00:21.2]} 65. Kd3
{[%clk 0:00:01.1]} 65... Kd5 {[%clk 0:00:22.1]} 66. Kc3 {[%clk 0:00:02]} 66...
c4 {[%clk 0:00:22.8]} 67. Kd2 {[%clk 0:00:02.3]} 67... Kd4 {[%clk 0:00:23.7]}
68. Kc2 {[%clk 0:00:03.1]} 68... c3 {[%clk 0:00:24.4]} 69. Kd1 {[%clk
0:00:03.7]} 69... Kd3 {[%clk 0:00:25.1]} 70. Kc1 {[%clk 0:00:04.3]} 70... c2
{[%clk 0:00:25.8]} 71. Kb2 {[%clk 0:00:04.2]} 71... Kd2 {[%clk 0:00:26.7]} 72.
Kb3 {[%clk 0:00:04.4]} 72... c1=Q {[%clk 0:00:26.5]} 73. Ka2 {[%clk 0:00:05.3]}
73... Qc4+ {[%clk 0:00:26.6]} 74. Ka3 {[%clk 0:00:05.4]} 74... Qb4+ {[%clk
0:00:27.2]} 75. Ka2 {[%clk 0:00:05.8]} 75... Kc2 {[%clk 0:00:28.1]} 0-1

[Event "Early-Titled-Tuesday-Blitz-June-18-2024"]
[Site "Chess.com"]
[Date "2024.06.18"]
[Round "6"]
[White "BirdMaster3000"]
[Black "RebelJohnny"]
[Result "1-0"]
[WhiteElo "2768"]
[BlackElo "2589"]
[TimeControl "180+1"]
[EndTime "9:10:24 PDT"]
[Termination "BirdMaster3000 won by resignation"]

1. f4 {[%clk 0:03:00.9]} 1... d5 {[%clk 0:02:56.8]} 2. Nf3 {[%clk 0:03:00]} 2...
g6 {[%clk 0:02:55.6]} 3. e3 {[%clk 0:02:59.9]} 3... Bg7 {[%clk 0:02:49.8]} 4. c4
{[%clk 0:03:00]} 4... d4 {[%clk 0:02:42.6]} 5. Nxd4 {[%clk 0:02:59.3]} 5... Bxd4
{[%clk 0:02:42.9]} 6. exd4 {[%clk 0:02:59.7]} 6... Qxd4 {[%clk 0:02:43]} 7. Nc3
{[%clk 0:02:59.8]} 7... Nh6 {[%clk 0:02:39.4]} 8. d3 {[%clk 0:02:52.3]} 8... Bg4
{[%clk 0:02:35.2]} 9. Qb3 {[%clk 0:02:35.9]} 9... Bc8 {[%clk 0:01:44.4]} 10. Nd5
{[%clk 0:02:26.3]} 10... Na6 {[%clk 0:01:32]} 11. Be3 {[%clk 0:02:23.9]} 11...
Qg7 {[%clk 0:01:30.6]} 12. O-O-O {[%clk 0:02:04.1]} 12... Nf5 {[%clk 0:01:22.2]}
13. Bf2 {[%clk 0:02:03.2]} 13... c6 {[%clk 0:01:17.4]} 14. g4 {[%clk 0:01:52.1]}
14... cxd5 {[%clk 0:01:05.2]} 15. gxf5 {[%clk 0:01:50.7]} 15... Bxf5 {[%clk
0:01:05.7]} 16. Qb5+ {[%clk 0:01:35.7]} 16... Bd7 {[%clk 0:00:59.2]} 17. Qxd5
{[%clk 0:01:28.8]} 17... Bc6 {[%clk 0:00:54.6]} 18. Qd4 {[%clk 0:01:28.7]} 18...
e5 {[%clk 0:00:43.4]} 19. Qd6 {[%clk 0:01:17.4]} 19... Rd8 {[%clk 0:00:36.4]}
20. Qa3 {[%clk 0:01:16.9]} 20... Bxh1 {[%clk 0:00:32.8]} 21. Bh4 {[%clk
0:01:16.7]} 21... g5 {[%clk 0:00:13]} 22. Bxg5 {[%clk 0:01:02.2]} 22... f6
{[%clk 0:00:13.3]} 23. Bh4 {[%clk 0:01:02.7]} 23... Bf3 {[%clk 0:00:12.5]} 24.
Re1 {[%clk 0:00:42.1]} 24... Kf7 {[%clk 0:00:12.9]} 25. d4 {[%clk 0:00:42.3]}
25... e4 {[%clk 0:00:12.6]} 26. c5 {[%clk 0:00:38.7]} 26... Rxd4 {[%clk
0:00:09.9]} 27. Qb3+ {[%clk 0:00:37.2]} 27... Kg6 {[%clk 0:00:10.3]} 28. f5+
{[%clk 0:00:36.9]} 28... Kh5 {[%clk 0:00:09.9]} 29. Bf2 {[%clk 0:00:35.7]} 29...
Rhd8 {[%clk 0:00:06.5]} 30. Bxd4 {[%clk 0:00:28.2]} 30... Rxd4 {[%clk
0:00:07.4]} 31. Qc3 {[%clk 0:00:27.7]} 31... Qg5+ {[%clk 0:00:06.8]} 32. Kc2
{[%clk 0:00:25.1]} 32... Rd5 {[%clk 0:00:07.3]} 33. Bxa6 {[%clk 0:00:19.3]}
33... bxa6 {[%clk 0:00:08.2]} 34. c6 {[%clk 0:00:20.2]} 34... Qxf5 {[%clk
0:00:08.8]} 35. b4 {[%clk 0:00:13.8]} 35... Qe5 {[%clk 0:00:08.7]} 36. c7 {[%clk
0:00:11.6]} 36... Qxc3+ {[%clk 0:00:02.8]} 37. Kxc3 {[%clk 0:00:12.5]} 37... Bg4
{[%clk 0:00:02.2]} 38. Rxe4 {[%clk 0:00:12.1]} 38... Bf5 {[%clk 0:00:01.6]} 39.
Rf4 {[%clk 0:00:12.2]} 39... Bh3 {[%clk 0:00:01.8]} 40. Rf3 {[%clk 0:00:12]}
40... Bd7 {[%clk 0:00:02.2]} 41. Rxf6 {[%clk 0:00:11]} 41... Rd1 {[%clk
0:00:02.9]} 42. Kb2 {[%clk 0:00:06.3]} 42... Rd4 {[%clk 0:00:02]} 43. Kc3 {[%clk
0:00:05.5]} 43... Rd1 {[%clk 0:00:02]} 44. Kb2 {[%clk 0:00:04.4]} 44... h6
{[%clk 0:00:02.3]} 45. Rf7 {[%clk 0:00:04.1]} 45... Bh3 {[%clk 0:00:02.5]} 46.
Rf3 {[%clk 0:00:03.7]} 46... Bg4 {[%clk 0:00:02.6]} 47. h3 {[%clk 0:00:03.2]}
47... Be6 {[%clk 0:00:02.2]} 48. Rf6 {[%clk 0:00:03.7]} 48... Bd7 {[%clk
0:00:02.3]} 49. Rf7 {[%clk 0:00:04.3]} 49... Be6 {[%clk 0:00:02.6]} 50. Rf6
{[%clk 0:00:03.8]} 50... Bd7 {[%clk 0:00:02.9]} 51. Rxa6 {[%clk 0:00:04.4]}
51... Rd4 {[%clk 0:00:02.4]} 52. Kc3 {[%clk 0:00:03.5]} 52... Rd1 {[%clk
0:00:03.1]} 53. Rxa7 {[%clk 0:00:04.1]} 53... Rc1+ {[%clk 0:00:02.6]} 54. Kd4
{[%clk 0:00:04.8]} 54... Bxh3 {[%clk 0:00:03.1]} 55. a4 {[%clk 0:00:04.3]} 55...
Bg4 {[%clk 0:00:03.8]} 56. b5 {[%clk 0:00:04.7]} 56... Kg5 {[%clk 0:00:04.4]}
57. Kd5 {[%clk 0:00:05.1]} 57... h5 {[%clk 0:00:04.7]} 58. b6 {[%clk 0:00:04.8]}
58... h4 {[%clk 0:00:05.2]} 59. b7 {[%clk 0:00:04]} 59... Bf3+ {[%clk
0:00:05.8]} 60. Kd6 {[%clk 0:00:04]} 60... Rc6+ {[%clk 0:00:04.6]} 61. Kd7
{[%clk 0:00:03.9]} 61... Rc3 {[%clk 0:00:02.1]} 62. c8=Q {[%clk 0:00:04.4]}
62... Bg4+ {[%clk 0:00:02.5]} 63. Kd8 {[%clk 0:00:05.3]} 63... Bxc8 {[%clk
0:00:03]} 64. bxc8=Q {[%clk 0:00:06.2]} 1-0